{"text_format":"1","workbook":"xlsx","n_sheets":1,"sheets":["Ag-108  Ag-110 Gemisch"],"not_rendered":{"charts":3,"images":0,"macros":0,"external_links":0,"defined_names":0,"comments":0,"pivot_tables":0},"unopened":[],"bounds":{"document_bytes":16777216,"sheet_cells":100000,"rows_first":2000,"rows_last":500,"rows_between":2000,"halvings":0,"cell_chars":16384,"cell_head_chars":4096},"cells_cut":0,"cells_raw":0,"read":"whole","date_system":"1900"}

{"sheet":"Ag-108  Ag-110 Gemisch","index":0,"n_rows":69,"n_cols":8,"rows_kept":69,"cut":false,"hidden":false,"merged":[]}
["Aktivierung von Silber",null,"4 min Aktivierung in einer Ra-Be-Neutronenquelle"]
["Gemisch zweier Isotope"]
["Literaturwerte:"]
["T1/2(Ag-108) =","142,2 s"]
["T1/2(Ag-110) =","24,6 s"]
[]
["Nulleffekt",7,"Imp/10s"]
[null,"Gesamtaktivität","Gesamtaktivität","Ag -108","Ag-108 aus Trend","Ag-110 allein"]
["Zeit","incl. Nulleffekt","Nulleffekt subtrahiert","ohne Ag-110","zurück berechnet"]
["in s","Imp/10s","Imp/10s","Imp/10s","Imp/10s","Imp/10s"]
[null,null,{"$f":"B11-$B$7","v":-7},null,{"$f":"$F$33*EXP(-$F$35*A11)","v":{"$error":"#VALUE!"}},{"$f":"C11-E11","v":{"$error":"#VALUE!"}},"Trendformel für Ag-110"]
[null,null,-7,null,{"$error":"#VALUE!"},{"$error":"#VALUE!"},"y = a * bx"]
[null,null,-7,null,{"$error":"#VALUE!"},{"$error":"#VALUE!"},"Basis b","Vorfaktor a"]
[null,null,-7,null,{"$error":"#VALUE!"},{"$error":"#VALUE!"},{"$f":"LOGEST(F11:F29,A11:A29,TRUE,FALSE)","v":{"$error":"#VALUE!"}},{"$error":"#VALUE!"}]
[null,null,-7,null,{"$error":"#VALUE!"},{"$error":"#VALUE!"},"e-l =",{"$f":"G14","v":{"$error":"#VALUE!"}}]
[null,null,-7,null,{"$error":"#VALUE!"},{"$error":"#VALUE!"},"l = ",{"$f":"-LN(H15)","v":{"$error":"#VALUE!"}}]
[null,null,-7,null,{"$error":"#VALUE!"},{"$error":"#VALUE!"},"T1/2 = ln(2)/l",{"$f":"LN(2)/H16","v":{"$error":"#VALUE!"}}]
[null,null,-7,null,{"$error":"#VALUE!"},{"$error":"#VALUE!"}]
[null,null,-7,null,{"$error":"#VALUE!"},{"$error":"#VALUE!"}]
[null,null,-7,null,{"$error":"#VALUE!"},{"$error":"#VALUE!"}]
[null,null,-7,null,{"$error":"#VALUE!"},{"$error":"#VALUE!"}]
[null,null,-7,null,{"$error":"#VALUE!"},{"$error":"#VALUE!"}]
[null,null,-7,null,{"$error":"#VALUE!"},{"$error":"#VALUE!"}]
[null,null,-7,null,{"$error":"#VALUE!"},{"$error":"#VALUE!"}]
[null,null,-7,null,{"$error":"#VALUE!"},{"$error":"#VALUE!"}]
[null,null,-7,null,{"$error":"#VALUE!"},{"$error":"#VALUE!"}]
[null,null,-7,null,{"$error":"#VALUE!"},{"$error":"#VALUE!"}]
[null,null,-7,null,{"$error":"#VALUE!"},{"$error":"#VALUE!"}]
[null,null,-7,null,{"$error":"#VALUE!"},{"$error":"#VALUE!"}]
[null,null,-7,{"$f":"C30","v":-7},"Trendformel für Ag-108"]
[null,null,-7,{"$f":"C31","v":-7},"y = a * bx"]
[null,null,-7,-7,"Basis b","Vorfaktor a"]
[null,null,-7,-7,{"$f":"LOGEST(C30:C69,A30:A69,TRUE,FALSE)","v":{"$error":"#VALUE!"}},{"$error":"#VALUE!"}]
[null,null,-7,-7,"e-l =",{"$f":"E33","v":{"$error":"#VALUE!"}}]
[null,null,-7,-7,"l = ",{"$f":"-LN(F34)","v":{"$error":"#VALUE!"}}]
[null,null,-7,-7,"T1/2 = ln(2)/l",{"$f":"LN(2)/F35","v":{"$error":"#VALUE!"}}]
[null,null,-7,-7]
[null,null,-7,-7]
[null,null,-7,-7]
[null,null,-7,-7]
[null,null,-7,-7]
[null,null,-7,-7]
[null,null,{"$f":"B43-$B$7","v":-7},-7]
[null,null,-7,-7]
[null,null,-7,-7]
[null,null,-7,-7]
[null,null,-7,-7]
[null,null,-7,-7]
[null,null,-7,-7]
[null,null,-7,-7]
[null,null,-7,-7]
[null,null,-7,-7]
[null,null,-7,-7]
[null,null,-7,-7]
[null,null,-7,-7]
[null,null,-7,-7]
[null,null,-7,-7]
[null,null,-7,-7]
[null,null,-7,-7]
[null,null,-7,-7]
[null,null,-7,-7]
[null,null,-7,-7]
[null,null,-7,-7]
[null,null,-7,-7]
[null,null,-7,-7]
[null,null,-7,-7]
[null,null,-7,-7]
[null,null,-7,-7]
[null,null,-7,-7]